[Event "*** Titled Tuesday Blitz"]
[Site "Chess.com"]
[Date "2021.04.27"]
[Round "10"]
[White "Nikolaj_6"]
[Black "guillembaches"]
[Result "1-0"]
[WhiteElo "2646"]
[BlackElo "2504"]
[TimeControl "180+1"]
[EndTime "11:53:10 PDT"]
[Termination "Nikolaj_6 won on time"]

1. e4 {[%clk 0:03:00.9]} 1... c5 {[%clk 0:03:00.3]} 2. Nf3 {[%clk 0:02:59.7]}
2... d6 {[%clk 0:03:00.9]} 3. d4 {[%clk 0:02:58.3]} 3... cxd4 {[%clk 0:03:01.8]}
4. Nxd4 {[%clk 0:02:58.8]} 4... Nf6 {[%clk 0:03:02.2]} 5. Nc3 {[%clk 0:02:58.9]}
5... Nc6 {[%clk 0:03:02.9]} 6. Bg5 {[%clk 0:02:58.2]} 6... e6 {[%clk 0:03:03.4]}
7. Qd2 {[%clk 0:02:58.2]} 7... h6 {[%clk 0:03:04]} 8. Be3 {[%clk 0:02:55.4]}
8... Ng4 {[%clk 0:03:01.9]} 9. Nxc6 {[%clk 0:02:54]} 9... bxc6 {[%clk
0:03:02.1]} 10. Bf4 {[%clk 0:02:52.7]} 10... e5 {[%clk 0:03:02.4]} 11. Bg3
{[%clk 0:02:52.7]} 11... Be7 {[%clk 0:03:03]} 12. h3 {[%clk 0:02:43.2]} 12...
Nf6 {[%clk 0:02:51.9]} 13. Bc4 {[%clk 0:02:37.4]} 13... O-O {[%clk 0:02:46.9]}
14. O-O {[%clk 0:02:28.1]} 14... Nh5 {[%clk 0:02:37.9]} 15. Bh2 {[%clk
0:02:26.3]} 15... Bg5 {[%clk 0:02:36.3]} 16. Qd3 {[%clk 0:02:24.2]} 16... Bf4
{[%clk 0:02:32.1]} 17. Rad1 {[%clk 0:02:19]} 17... Qg5 {[%clk 0:02:26.7]} 18.
Ne2 {[%clk 0:02:10.2]} 18... Rd8 {[%clk 0:02:07.2]} 19. Bxf4 {[%clk 0:02:03.8]}
19... exf4 {[%clk 0:01:47.6]} 20. Nd4 {[%clk 0:01:56.5]} 20... Qc5 {[%clk
0:01:34.2]} 21. b4 {[%clk 0:01:51.4]} 21... Qb6 {[%clk 0:01:29.8]} 22. Qf3
{[%clk 0:01:43.7]} 22... Nf6 {[%clk 0:01:08.1]} 23. Qxf4 {[%clk 0:01:41.9]}
23... Bb7 {[%clk 0:01:02.5]} 24. c3 {[%clk 0:01:33.6]} 24... d5 {[%clk
0:00:41.1]} 25. exd5 {[%clk 0:01:27.6]} 25... cxd5 {[%clk 0:00:40.7]} 26. Bd3
{[%clk 0:01:15.9]} 26... Ne4 {[%clk 0:00:40.5]} 27. Bxe4 {[%clk 0:01:11.8]}
27... dxe4 {[%clk 0:00:40.2]} 28. Nf5 {[%clk 0:01:06.6]} 28... Qf6 {[%clk
0:00:31.5]} 29. Qg4 {[%clk 0:00:58.8]} 29... Kh7 {[%clk 0:00:21]} 30. Nd4 {[%clk
0:00:56.4]} 30... Re8 {[%clk 0:00:14.4]} 31. Qf5+ {[%clk 0:00:55.1]} 31... Qxf5
{[%clk 0:00:13.3]} 32. Nxf5 {[%clk 0:00:56]} 32... Rec8 {[%clk 0:00:10.7]} 33.
Rd7 {[%clk 0:00:51.7]} 33... Ba6 {[%clk 0:00:09.3]} 34. Rc1 {[%clk 0:00:48.4]}
34... Kg6 {[%clk 0:00:06.2]} 35. Ne7+ {[%clk 0:00:47.9]} 35... Kf6 {[%clk
0:00:06.8]} 36. Nxc8 {[%clk 0:00:47.2]} 36... Rxc8 {[%clk 0:00:07.4]} 37. Rd6+
{[%clk 0:00:47.3]} 1-0

[Event "*** Titled Tuesday Blitz"]
[Site "Chess.com"]
[Date "2021.04.27"]
[Round "10"]
[White "andrewtnb"]
[Black "ShahMatKanal"]
[Result "0-1"]
[WhiteElo "2259"]
[BlackElo "2423"]
[TimeControl "180+1"]
[EndTime "11:53:10 PDT"]
[Termination "ShahMatKanal won on time"]

1. d4 {[%clk 0:03:00.9]} 1... d5 {[%clk 0:03:00.1]} 2. c4 {[%clk 0:02:59]} 2...
c6 {[%clk 0:03:00.5]} 3. cxd5 {[%clk 0:02:58.5]} 3... cxd5 {[%clk 0:03:00.3]} 4.
Nf3 {[%clk 0:02:59.4]} 4... Nc6 {[%clk 0:03:00]} 5. Nc3 {[%clk 0:02:59.9]} 5...
a6 {[%clk 0:03:00.5]} 6. Bf4 {[%clk 0:02:58.2]} 6... Nf6 {[%clk 0:03:00.8]} 7.
Rc1 {[%clk 0:02:57.5]} 7... e6 {[%clk 0:03:00.8]} 8. e3 {[%clk 0:02:57.3]} 8...
Bd6 {[%clk 0:03:00.9]} 9. Bxd6 {[%clk 0:02:57.1]} 9... Qxd6 {[%clk 0:03:01.8]}
10. Be2 {[%clk 0:02:55.6]} 10... O-O {[%clk 0:03:02.1]} 11. O-O {[%clk 0:02:56]}
11... b5 {[%clk 0:03:01.5]} 12. a4 {[%clk 0:02:47.2]} 12... b4 {[%clk
0:02:57.1]} 13. Nb1 {[%clk 0:02:46.7]} 13... a5 {[%clk 0:02:49.8]} 14. Nbd2
{[%clk 0:02:45.5]} 14... Ba6 {[%clk 0:02:49.8]} 15. Bxa6 {[%clk 0:02:38.7]}
15... Rxa6 {[%clk 0:02:50.7]} 16. Nb3 {[%clk 0:02:23.2]} 16... Ne4 {[%clk
0:02:50.2]} 17. Nfd2 {[%clk 0:01:46.6]} 17... f5 {[%clk 0:02:46.4]} 18. f3
{[%clk 0:01:17.4]} 18... Nf6 {[%clk 0:02:28]} 19. Nc5 {[%clk 0:01:11.1]} 19...
Ra7 {[%clk 0:02:27.1]} 20. Ndb3 {[%clk 0:01:08.9]} 20... e5 {[%clk 0:02:16.9]}
21. dxe5 {[%clk 0:01:04.2]} 21... Nxe5 {[%clk 0:02:17.8]} 22. Qd4 {[%clk
0:00:54.5]} 22... Nc6 {[%clk 0:01:50.8]} 23. Qd3 {[%clk 0:00:52.5]} 23... Qe5
{[%clk 0:01:39.9]} 24. Rfd1 {[%clk 0:00:17.7]} 24... g6 {[%clk 0:01:28.4]} 25.
Nd4 {[%clk 0:00:17.6]} 25... Ne7 {[%clk 0:01:24.8]} 26. Nb5 {[%clk 0:00:15.8]}
26... Raa8 {[%clk 0:01:22.5]} 27. Qd4 {[%clk 0:00:13.6]} 27... Qb8 {[%clk
0:01:11.7]} 28. Ne6 {[%clk 0:00:10.1]} 28... Rf7 {[%clk 0:01:12.1]} 29. Nbc7
{[%clk 0:00:09.1]} 29... Ra7 {[%clk 0:01:09.3]} 30. Nb5 {[%clk 0:00:05.7]} 30...
Rd7 {[%clk 0:01:07.8]} 31. Nc5 {[%clk 0:00:05]} 31... Rd8 {[%clk 0:01:06.1]} 32.
Ne6 {[%clk 0:00:05.1]} 32... Re8 {[%clk 0:00:55.8]} 33. Rc2 {[%clk 0:00:02.9]}
33... f4 {[%clk 0:00:47.4]} 34. Nxf4 {[%clk 0:00:02.4]} 34... Nf5 {[%clk
0:00:47.8]} 35. Qd3 {[%clk 0:00:01]} 35... Nxe3 {[%clk 0:00:47.9]} 0-1

[Event "*** Titled Tuesday Blitz"]
[Site "Chess.com"]
[Date "2021.04.27"]
[Round "10"]
[White "juancruzarias"]
[Black "DeTimmerman"]
[Result "1/2-1/2"]
[WhiteElo "2615"]
[BlackElo "2796"]
[TimeControl "180+1"]
[EndTime "11:53:15 PDT"]
[Termination "Game drawn by repetition"]

1. d4 {[%clk 0:03:00.9]} 1... Nf6 {[%clk 0:02:55.8]} 2. Nf3 {[%clk 0:03:01.2]}
2... e6 {[%clk 0:02:56.2]} 3. e3 {[%clk 0:03:01.5]} 3... d5 {[%clk 0:02:57.1]}
4. Bd3 {[%clk 0:03:02.1]} 4... Be7 {[%clk 0:02:56.9]} 5. O-O {[%clk 0:03:02.6]}
5... O-O {[%clk 0:02:57.5]} 6. Nbd2 {[%clk 0:03:03.2]} 6... b6 {[%clk
0:02:57.2]} 7. Qe2 {[%clk 0:03:03.7]} 7... Bb7 {[%clk 0:02:57.5]} 8. Ne5 {[%clk
0:03:04.2]} 8... Nbd7 {[%clk 0:02:57.1]} 9. f4 {[%clk 0:03:04.6]} 9... Ne4
{[%clk 0:02:57.4]} 10. b3 {[%clk 0:03:02]} 10... f6 {[%clk 0:02:53.8]} 11. Nxd7
{[%clk 0:02:59.5]} 11... Qxd7 {[%clk 0:02:54.7]} 12. Nxe4 {[%clk 0:02:52]} 12...
dxe4 {[%clk 0:02:55.6]} 13. Bc4 {[%clk 0:02:47]} 13... Bd5 {[%clk 0:02:55.4]}
14. Bxd5 {[%clk 0:02:44.6]} 14... exd5 {[%clk 0:02:50]} 15. Bb2 {[%clk
0:02:41.2]} 15... f5 {[%clk 0:02:48.5]} 16. c4 {[%clk 0:02:39.2]} 16... c6
{[%clk 0:02:48]} 17. Rac1 {[%clk 0:02:38.8]} 17... Rfc8 {[%clk 0:02:47.1]} 18.
Rc2 {[%clk 0:02:39.1]} 18... Rc7 {[%clk 0:02:45.9]} 19. Rfc1 {[%clk 0:02:38.3]}
19... Rac8 {[%clk 0:02:46.4]} 20. Qh5 {[%clk 0:02:23.4]} 20... g6 {[%clk
0:02:36.2]} 21. Qe2 {[%clk 0:02:23.3]} 21... b5 {[%clk 0:02:30.4]} 22. Qd2
{[%clk 0:02:22.2]} 22... bxc4 {[%clk 0:02:19]} 23. bxc4 {[%clk 0:02:22.1]} 23...
Rb7 {[%clk 0:02:15]} 24. Qa5 {[%clk 0:02:14.9]} 24... Rcb8 {[%clk 0:02:08]} 25.
Ba3 {[%clk 0:02:11.5]} 25... Bd8 {[%clk 0:02:08.3]} 26. Qa4 {[%clk 0:02:10.6]}
26... g5 {[%clk 0:02:03.2]} 27. g3 {[%clk 0:01:46.1]} 27... h5 {[%clk
0:01:51.2]} 28. cxd5 {[%clk 0:01:44.7]} 28... cxd5 {[%clk 0:01:51]} 29. Rc6
{[%clk 0:01:31.5]} 29... g4 {[%clk 0:01:29.3]} 30. Bd6 {[%clk 0:01:08.2]} 30...
Rc8 {[%clk 0:01:23.9]} 31. Be5 {[%clk 0:01:04.5]} 31... Rxc6 {[%clk 0:01:23.5]}
32. Rxc6 {[%clk 0:01:02.2]} 32... h4 {[%clk 0:01:19.9]} 33. gxh4 {[%clk
0:01:01.3]} 33... Bxh4 {[%clk 0:01:17.8]} 34. Qa6 {[%clk 0:00:55]} 34... Kf7
{[%clk 0:01:05.8]} 35. Rh6 {[%clk 0:00:40]} 35... Rb1+ {[%clk 0:01:04.1]} 36.
Kg2 {[%clk 0:00:36.4]} 36... Rb2+ {[%clk 0:01:04.4]} 37. Kf1 {[%clk 0:00:32.9]}
37... Rb6 {[%clk 0:00:55.2]} 38. Rxb6 {[%clk 0:00:18.6]} 38... axb6 {[%clk
0:00:56.1]} 39. Qxb6 {[%clk 0:00:19.5]} 39... Qa4 {[%clk 0:00:56.6]} 40. Qb7+
{[%clk 0:00:18.2]} 40... Ke8 {[%clk 0:00:54.9]} 41. Qc8+ {[%clk 0:00:15.3]}
41... Ke7 {[%clk 0:00:53.9]} 42. Qc7+ {[%clk 0:00:14.4]} 42... Ke8 {[%clk
0:00:54.4]} 43. Qc8+ {[%clk 0:00:14.3]} 43... Ke7 {[%clk 0:00:54.6]} 44. Qc5+
{[%clk 0:00:14.1]} 44... Ke8 {[%clk 0:00:53.1]} 45. Qc8+ {[%clk 0:00:11.6]}
1/2-1/2

[Event "*** Titled Tuesday Blitz"]
[Site "Chess.com"]
[Date "2021.04.27"]
[Round "10"]
[White "noblerone"]
[Black "InvisibleWarrior2252"]
[Result "0-1"]
[WhiteElo "2400"]
[BlackElo "2559"]
[TimeControl "180+1"]
[EndTime "11:53:16 PDT"]
[Termination "InvisibleWarrior2252 won on time"]

1. d4 {[%clk 0:03:00.9]} 1... Nf6 {[%clk 0:02:59.6]} 2. Nf3 {[%clk 0:03:01.1]}
2... g6 {[%clk 0:03:00.2]} 3. Bg5 {[%clk 0:03:01.3]} 3... d5 {[%clk 0:02:58.3]}
4. Nbd2 {[%clk 0:03:00.2]} 4... Bg7 {[%clk 0:02:58]} 5. e3 {[%clk 0:03:00.8]}
5... O-O {[%clk 0:02:57.5]} 6. Be2 {[%clk 0:03:00.1]} 6... b6 {[%clk 0:02:58.1]}
7. O-O {[%clk 0:03:00.2]} 7... Bb7 {[%clk 0:02:58.7]} 8. a4 {[%clk 0:02:59.4]}
8... a6 {[%clk 0:02:56]} 9. c3 {[%clk 0:02:54.4]} 9... c5 {[%clk 0:02:56]} 10.
Ne5 {[%clk 0:02:53.7]} 10... Nc6 {[%clk 0:02:55.7]} 11. f4 {[%clk 0:02:52.6]}
11... Rc8 {[%clk 0:02:45.8]} 12. Bh4 {[%clk 0:02:43.9]} 12... Ne4 {[%clk
0:02:41.6]} 13. Nxe4 {[%clk 0:02:34.9]} 13... dxe4 {[%clk 0:02:42.5]} 14. Nxc6
{[%clk 0:02:32.1]} 14... Rxc6 {[%clk 0:02:41.2]} 15. dxc5 {[%clk 0:02:23.7]}
15... Rxc5 {[%clk 0:02:41.5]} 16. Qxd8 {[%clk 0:02:23]} 16... Rxd8 {[%clk
0:02:42.4]} 17. Bxe7 {[%clk 0:02:23.5]} 17... Rd2 {[%clk 0:02:42.5]} 18. Bxc5
{[%clk 0:02:23.2]} 18... bxc5 {[%clk 0:02:43.4]} 19. Rf2 {[%clk 0:01:50.3]}
19... Rxb2 {[%clk 0:02:35]} 20. Bc4 {[%clk 0:01:41.6]} 20... Rb6 {[%clk
0:02:34.4]} 21. Rc1 {[%clk 0:01:32.8]} 21... Rd6 {[%clk 0:02:29.9]} 22. Rb2
{[%clk 0:01:28.9]} 22... Rd7 {[%clk 0:02:17.2]} 23. Kf2 {[%clk 0:01:24.2]} 23...
Bf6 {[%clk 0:02:12.3]} 24. Ke2 {[%clk 0:01:20.4]} 24... Bc8 {[%clk 0:02:03.6]}
25. Rb8 {[%clk 0:01:14.6]} 25... Rd8 {[%clk 0:02:03.8]} 26. Rcb1 {[%clk
0:00:48.5]} 26... Kg7 {[%clk 0:01:58.1]} 27. h3 {[%clk 0:00:45.2]} 27... Bxc3
{[%clk 0:01:56.9]} 28. Kf2 {[%clk 0:00:23.7]} 28... Bb4 {[%clk 0:01:46.3]} 29.
Be2 {[%clk 0:00:21]} 29... Kf6 {[%clk 0:01:39.8]} 30. Rd1 {[%clk 0:00:15.6]}
30... Rxd1 {[%clk 0:01:22.8]} 31. Bxd1 {[%clk 0:00:16.5]} 31... Be6 {[%clk
0:01:22.8]} 32. Be2 {[%clk 0:00:14.7]} 32... a5 {[%clk 0:01:23.1]} 33. Rb6
{[%clk 0:00:14.4]} 33... Ke7 {[%clk 0:01:22.7]} 34. g4 {[%clk 0:00:14.5]} 34...
Bb3 {[%clk 0:01:17.4]} 35. Bb5 {[%clk 0:00:13.6]} 35... c4 {[%clk 0:01:16.7]}
36. Rc6 {[%clk 0:00:13.6]} 36... c3 {[%clk 0:01:17]} 37. f5 {[%clk 0:00:11.9]}
37... c2 {[%clk 0:01:11]} 38. Ke2 {[%clk 0:00:08.5]} 38... Ba3 {[%clk
0:01:05.7]} 39. Kd2 {[%clk 0:00:08.4]} 39... c1=Q+ {[%clk 0:01:04.5]} 40. Rxc1
{[%clk 0:00:07.9]} 40... Bxc1+ {[%clk 0:01:05.4]} 41. Kxc1 {[%clk 0:00:08.7]}
41... gxf5 {[%clk 0:01:06.3]} 42. gxf5 {[%clk 0:00:08.9]} 42... Kf6 {[%clk
0:01:07.2]} 43. Bd7 {[%clk 0:00:07.4]} 43... Kg5 {[%clk 0:01:07.7]} 44. Kd2
{[%clk 0:00:07.2]} 44... Kh4 {[%clk 0:01:07.7]} 45. f6 {[%clk 0:00:01.1]} 45...
Kg5 {[%clk 0:01:04.4]} 0-1

[Event "*** Titled Tuesday Blitz"]
[Site "Chess.com"]
[Date "2021.04.27"]
[Round "10"]
[White "Jungle_Jaguar"]
[Black "Nafania1"]
[Result "1-0"]
[WhiteElo "2696"]
[BlackElo "2561"]
[TimeControl "180+1"]
[EndTime "11:53:17 PDT"]
[Termination "Jungle_Jaguar won by checkmate"]

1. e4 {[%clk 0:03:00.9]} 1... e6 {[%clk 0:03:00]} 2. d4 {[%clk 0:03:01.2]} 2...
d5 {[%clk 0:03:00.4]} 3. Nc3 {[%clk 0:03:01.8]} 3... h6 {[%clk 0:03:00.1]} 4.
Nf3 {[%clk 0:03:00.2]} 4... Nf6 {[%clk 0:02:59.7]} 5. Bd3 {[%clk 0:02:52.3]}
5... Bb4 {[%clk 0:02:59]} 6. e5 {[%clk 0:02:38.9]} 6... Ne4 {[%clk 0:02:58.8]}
7. O-O {[%clk 0:02:29.9]} 7... Nxc3 {[%clk 0:02:58.7]} 8. bxc3 {[%clk
0:02:30.8]} 8... Bxc3 {[%clk 0:02:59.3]} 9. Rb1 {[%clk 0:02:31.4]} 9... Nc6
{[%clk 0:02:59.7]} 10. Ba3 {[%clk 0:02:31]} 10... a5 {[%clk 0:02:59.5]} 11. Bb5
{[%clk 0:02:29.8]} 11... Bd7 {[%clk 0:02:59.4]} 12. Bxc6 {[%clk 0:02:29.5]}
12... Bxc6 {[%clk 0:02:59.2]} 13. Ne1 {[%clk 0:01:37.3]} 13... Bb4 {[%clk
0:02:56.2]} 14. Bxb4 {[%clk 0:01:36.9]} 14... axb4 {[%clk 0:02:56.3]} 15. Nd3
{[%clk 0:01:37.5]} 15... b6 {[%clk 0:02:42.4]} 16. Nxb4 {[%clk 0:01:37]} 16...
Bb5 {[%clk 0:02:42.6]} 17. Re1 {[%clk 0:01:35.8]} 17... O-O {[%clk 0:02:42.2]}
18. Rb3 {[%clk 0:01:30.7]} 18... Bc4 {[%clk 0:02:04.8]} 19. Rg3 {[%clk
0:01:29.8]} 19... c5 {[%clk 0:02:00.2]} 20. dxc5 {[%clk 0:00:44.2]} 20... bxc5
{[%clk 0:01:59.9]} 21. Nd3 {[%clk 0:00:31.3]} 21... Bxd3 {[%clk 0:02:00]} 22.
cxd3 {[%clk 0:00:28]} 22... Rxa2 {[%clk 0:01:58.1]} 23. Qc1 {[%clk 0:00:28.3]}
23... Kh7 {[%clk 0:01:40.5]} 24. Qxc5 {[%clk 0:00:28.7]} 24... Qa5 {[%clk
0:01:34.1]} 25. Qe3 {[%clk 0:00:27]} 25... Qd2 {[%clk 0:01:29.8]} 26. h4 {[%clk
0:00:23]} 26... Qxe3 {[%clk 0:01:28]} 27. Rexe3 {[%clk 0:00:23.9]} 27... Rc8
{[%clk 0:01:25.5]} 28. Ref3 {[%clk 0:00:23.3]} 28... Rc7 {[%clk 0:01:24.6]} 29.
h5 {[%clk 0:00:22.5]} 29... Rd2 {[%clk 0:01:22.6]} 30. Kh2 {[%clk 0:00:22.1]}
30... Kg8 {[%clk 0:01:22.7]} 31. Rg4 {[%clk 0:00:22.4]} 31... Rc3 {[%clk
0:01:18.4]} 32. Rfg3 {[%clk 0:00:20.5]} 32... Rxf2 {[%clk 0:01:11.1]} 33. Rxg7+
{[%clk 0:00:20.6]} 33... Kf8 {[%clk 0:01:11.6]} 34. Rh7 {[%clk 0:00:17]} 34...
Rd2 {[%clk 0:01:03.7]} 35. Rf3 {[%clk 0:00:17]} 35... Rdxd3 {[%clk 0:00:57]} 36.
Rfxf7+ {[%clk 0:00:14.4]} 36... Kg8 {[%clk 0:00:57.2]} 37. Rfg7+ {[%clk
0:00:13]} 37... Kf8 {[%clk 0:00:56.8]} 38. Rg6 {[%clk 0:00:12.9]} 38... Rd2
{[%clk 0:00:48.3]} 39. Rxe6 {[%clk 0:00:11.4]} 39... Rcc2 {[%clk 0:00:48.4]} 40.
Rg6 {[%clk 0:00:11.6]} 40... d4 {[%clk 0:00:48.7]} 41. e6 {[%clk 0:00:11.7]}
41... Re2 {[%clk 0:00:49.1]} 42. Rf7+ {[%clk 0:00:11.7]} 42... Ke8 {[%clk
0:00:47.7]} 43. Rg8# {[%clk 0:00:11.3]} 1-0

[Event "*** Titled Tuesday Blitz"]
[Site "Chess.com"]
[Date "2021.04.27"]
[Round "10"]
[White "KuzubovYuriy"]
[Black "Oleksandr_Bortnyk"]
[Result "1-0"]
[WhiteElo "2874"]
[BlackElo "2952"]
[TimeControl "180+1"]
[EndTime "11:53:18 PDT"]
[Termination "KuzubovYuriy won by resignation"]

1. d4 {[%clk 0:03:00.9]} 1... d6 {[%clk 0:02:59.9]} 2. Nf3 {[%clk 0:03:01]} 2...
Nf6 {[%clk 0:03:00.4]} 3. Nbd2 {[%clk 0:03:01.4]} 3... g6 {[%clk 0:03:01.3]} 4.
e4 {[%clk 0:03:01.3]} 4... Bg7 {[%clk 0:03:00.8]} 5. Be2 {[%clk 0:03:00.8]} 5...
O-O {[%clk 0:02:58.3]} 6. O-O {[%clk 0:03:01.3]} 6... c5 {[%clk 0:02:55.4]} 7.
dxc5 {[%clk 0:03:01]} 7... dxc5 {[%clk 0:02:55.4]} 8. c3 {[%clk 0:03:00.9]} 8...
Nc6 {[%clk 0:02:54.6]} 9. Re1 {[%clk 0:03:00.6]} 9... Qc7 {[%clk 0:02:53.3]} 10.
Qc2 {[%clk 0:03:00.3]} 10... Bg4 {[%clk 0:02:49]} 11. h3 {[%clk 0:02:58.2]}
11... Bxf3 {[%clk 0:02:49.4]} 12. Nxf3 {[%clk 0:02:59.1]} 12... Rad8 {[%clk
0:02:33.7]} 13. g3 {[%clk 0:02:54]} 13... Nd7 {[%clk 0:02:28.8]} 14. Kg2 {[%clk
0:02:47.2]} 14... a6 {[%clk 0:02:27.9]} 15. Bf4 {[%clk 0:02:38]} 15... Nde5
{[%clk 0:02:25.3]} 16. Red1 {[%clk 0:02:26.3]} 16... e6 {[%clk 0:02:19.7]} 17.
a4 {[%clk 0:02:17.5]} 17... Qa5 {[%clk 0:02:11.5]} 18. Nxe5 {[%clk 0:02:14.3]}
18... Nxe5 {[%clk 0:02:05.5]} 19. Bg5 {[%clk 0:02:12.7]} 19... Rxd1 {[%clk
0:02:02.5]} 20. Rxd1 {[%clk 0:02:13.6]} 20... Qc7 {[%clk 0:01:54.2]} 21. Be3
{[%clk 0:02:08.1]} 21... Qc6 {[%clk 0:00:58.4]} 22. f4 {[%clk 0:01:58.9]} 22...
Nd7 {[%clk 0:00:58.7]} 23. Bf3 {[%clk 0:01:48.2]} 23... e5 {[%clk 0:00:59.2]}
24. Qd3 {[%clk 0:01:34.6]} 24... exf4 {[%clk 0:00:26.6]} 25. gxf4 {[%clk
0:01:34.6]} 25... Nb6 {[%clk 0:00:27.1]} 26. a5 {[%clk 0:01:26.3]} 26... Nc8
{[%clk 0:00:26]} 27. Qd5 {[%clk 0:01:13.9]} 27... Qb5 {[%clk 0:00:18.5]} 28. Rd2
{[%clk 0:01:13.2]} 28... Bf6 {[%clk 0:00:09.1]} 29. Qxc5 {[%clk 0:01:09.9]}
29... Qb3 {[%clk 0:00:05]} 30. Bd1 {[%clk 0:01:05.9]} 30... Qe6 {[%clk
0:00:04.6]} 31. Qd5 {[%clk 0:01:05.7]} 31... Qe8 {[%clk 0:00:03.8]} 32. Qxb7
{[%clk 0:01:02.5]} 32... Bh4 {[%clk 0:00:02.6]} 33. Bf3 {[%clk 0:00:58.1]} 33...
Qe6 {[%clk 0:00:02.4]} 34. Bc5 {[%clk 0:00:47.5]} 34... Re8 {[%clk 0:00:01.5]}
35. Qd7 {[%clk 0:00:39.7]} 35... Rd8 {[%clk 0:00:01.8]} 36. Qxd8+ {[%clk
0:00:40]} 36... Bxd8 {[%clk 0:00:02.6]} 37. Rxd8+ {[%clk 0:00:40.1]} 37... Kg7
{[%clk 0:00:03.5]} 38. Bf8+ {[%clk 0:00:39.4]} 38... Kf6 {[%clk 0:00:02.6]} 39.
e5+ {[%clk 0:00:39.5]} 1-0

[Event "*** Titled Tuesday Blitz"]
[Site "Chess.com"]
[Date "2021.04.27"]
[Round "10"]
[White "IMRosen"]
[Black "Das_Virus_2020"]
[Result "1-0"]
[WhiteElo "2675"]
[BlackElo "2513"]
[TimeControl "180+1"]
[EndTime "11:53:18 PDT"]
[Termination "IMRosen won by resignation"]

1. d4 {[%clk 0:02:54.7]} 1... Nf6 {[%clk 0:02:59.3]} 2. Bf4 {[%clk 0:02:53.6]}
2... c5 {[%clk 0:02:58.9]} 3. e3 {[%clk 0:02:53.6]} 3... Qb6 {[%clk 0:02:57.9]}
4. Na3 {[%clk 0:02:53.1]} 4... d6 {[%clk 0:02:57.5]} 5. Nc4 {[%clk 0:02:52.3]}
5... Qc7 {[%clk 0:02:57.6]} 6. a4 {[%clk 0:02:51.2]} 6... g6 {[%clk 0:02:55.5]}
7. Nf3 {[%clk 0:02:35.9]} 7... Bg7 {[%clk 0:02:55]} 8. c3 {[%clk 0:02:36.4]}
8... O-O {[%clk 0:02:54.7]} 9. Be2 {[%clk 0:02:35.7]} 9... cxd4 {[%clk
0:02:24.2]} 10. exd4 {[%clk 0:02:34.7]} 10... Be6 {[%clk 0:02:14.3]} 11. Ncd2
{[%clk 0:01:55.6]} 11... Nc6 {[%clk 0:02:06.3]} 12. O-O {[%clk 0:01:53.7]} 12...
Na5 {[%clk 0:01:55.5]} 13. h3 {[%clk 0:01:43.2]} 13... Rac8 {[%clk 0:01:50.3]}
14. Re1 {[%clk 0:01:42.5]} 14... Rfe8 {[%clk 0:01:48.7]} 15. Bb5 {[%clk
0:01:41.4]} 15... Bd7 {[%clk 0:01:43.9]} 16. Bf1 {[%clk 0:01:37.2]} 16... a6
{[%clk 0:01:17.7]} 17. Qb1 {[%clk 0:01:36.4]} 17... Bf5 {[%clk 0:01:14.9]} 18.
Qa2 {[%clk 0:01:35]} 18... Nc6 {[%clk 0:00:57.2]} 19. Ng5 {[%clk 0:01:30.8]}
19... Rf8 {[%clk 0:00:55.3]} 20. Bc4 {[%clk 0:01:30.9]} 20... Nd8 {[%clk
0:00:48.5]} 21. g4 {[%clk 0:01:18.8]} 21... h6 {[%clk 0:00:43.1]} 22. Nxf7
{[%clk 0:01:02.3]} 22... Nxf7 {[%clk 0:00:39.2]} 23. gxf5 {[%clk 0:01:02]} 23...
g5 {[%clk 0:00:28]} 24. Bg3 {[%clk 0:00:55.3]} 24... Nh5 {[%clk 0:00:19.7]} 25.
Be6 {[%clk 0:00:54.4]} 25... Rce8 {[%clk 0:00:18]} 26. Ne4 {[%clk 0:00:48.3]}
26... Nf6 {[%clk 0:00:15.7]} 27. Re2 {[%clk 0:00:45.5]} 27... Nxe4 {[%clk
0:00:15.6]} 28. Rxe4 {[%clk 0:00:46.2]} 28... Bf6 {[%clk 0:00:15.9]} 29. Rae1
{[%clk 0:00:45.8]} 29... Kg7 {[%clk 0:00:16.1]} 30. c4 {[%clk 0:00:39.7]} 30...
Nd8 {[%clk 0:00:15.7]} 31. c5 {[%clk 0:00:35.9]} 31... Nxe6 {[%clk 0:00:15.7]}
32. Rxe6 {[%clk 0:00:35.7]} 32... Qc6 {[%clk 0:00:13.5]} 33. cxd6 {[%clk
0:00:30.7]} 33... exd6 {[%clk 0:00:13.5]} 34. d5 {[%clk 0:00:31.3]} 34... Qb6
{[%clk 0:00:05.7]} 35. Rxe8 {[%clk 0:00:29.4]} 35... Rxe8 {[%clk 0:00:04.8]} 36.
Rxe8 {[%clk 0:00:30.3]} 1-0

[Event "*** Titled Tuesday Blitz"]
[Site "Chess.com"]
[Date "2021.04.27"]
[Round "10"]
[White "Guzman70"]
[Black "WuinaterJr"]
[Result "0-1"]
[WhiteElo "2293"]
[BlackElo "2500"]
[TimeControl "180+1"]
[EndTime "11:53:19 PDT"]
[Termination "WuinaterJr won by resignation"]

1. e4 {[%clk 0:03:00.9]} 1... c5 {[%clk 0:02:59.4]} 2. Nc3 {[%clk 0:03:00.1]}
2... d6 {[%clk 0:02:59.1]} 3. Nf3 {[%clk 0:02:54.3]} 3... a6 {[%clk 0:02:58.5]}
4. d4 {[%clk 0:02:53.9]} 4... cxd4 {[%clk 0:02:58.8]} 5. Nxd4 {[%clk 0:02:54.8]}
5... Nf6 {[%clk 0:02:57.8]} 6. Bc4 {[%clk 0:02:54.1]} 6... e6 {[%clk 0:02:56.3]}
7. Be3 {[%clk 0:02:52.2]} 7... Be7 {[%clk 0:02:55.5]} 8. f3 {[%clk 0:02:48.3]}
8... O-O {[%clk 0:02:55.7]} 9. Qe2 {[%clk 0:02:46.7]} 9... b5 {[%clk 0:02:54.3]}
10. Bb3 {[%clk 0:02:46.3]} 10... Bb7 {[%clk 0:02:54.2]} 11. g4 {[%clk
0:02:44.1]} 11... Nbd7 {[%clk 0:02:47.4]} 12. g5 {[%clk 0:02:40.9]} 12... Nh5
{[%clk 0:02:38.6]} 13. f4 {[%clk 0:02:33]} 13... g6 {[%clk 0:02:12.8]} 14. Nxe6
{[%clk 0:02:27.6]} 14... fxe6 {[%clk 0:02:07.8]} 15. Bxe6+ {[%clk 0:02:27.4]}
15... Kh8 {[%clk 0:02:06.9]} 16. Bd4+ {[%clk 0:02:23.1]} 16... Ng7 {[%clk
0:01:51.9]} 17. h4 {[%clk 0:02:20.1]} 17... Rxf4 {[%clk 0:01:50.3]} 18. h5
{[%clk 0:02:18.3]} 18... Ne5 {[%clk 0:01:39.9]} 19. O-O-O {[%clk 0:02:03.2]}
19... Bxg5 {[%clk 0:01:26.7]} 20. Kb1 {[%clk 0:01:44.2]} 20... Qf6 {[%clk
0:01:08.6]} 21. Bb3 {[%clk 0:01:31.9]} 21... Nxh5 {[%clk 0:01:05.9]} 22. Rxh5
{[%clk 0:01:28]} 22... gxh5 {[%clk 0:01:05.2]} 23. Qxh5 {[%clk 0:01:28.1]} 23...
Rh4 {[%clk 0:00:58.5]} 24. Qe2 {[%clk 0:01:22.1]} 24... Rf8 {[%clk 0:00:57.8]}
25. Nd5 {[%clk 0:01:14.1]} 25... Bxd5 {[%clk 0:00:57.5]} 26. Bxd5 {[%clk
0:01:14.3]} 26... Qf3 {[%clk 0:00:56.7]} 27. Qe1 {[%clk 0:01:04.9]} 27... Rhf4
{[%clk 0:00:38.6]} 28. a4 {[%clk 0:00:43.1]} 28... Qxd1+ {[%clk 0:00:36.7]} 29.
Qxd1 {[%clk 0:00:42.9]} 29... Rf1 {[%clk 0:00:37]} 30. Qxf1 {[%clk 0:00:42]}
30... Rxf1+ {[%clk 0:00:37.9]} 31. Ka2 {[%clk 0:00:42.6]} 31... h5 {[%clk
0:00:36.3]} 32. Bb7 {[%clk 0:00:33.7]} 32... h4 {[%clk 0:00:34]} 33. Bxa6 {[%clk
0:00:33.9]} 33... h3 {[%clk 0:00:34.3]} 34. axb5 {[%clk 0:00:34.4]} 34... h2
{[%clk 0:00:30.6]} 35. b6 {[%clk 0:00:34.5]} 35... h1=Q {[%clk 0:00:30.1]} 36.
b7 {[%clk 0:00:32.7]} 36... Rf8 {[%clk 0:00:27.3]} 37. Ba7 {[%clk 0:00:23.8]}
37... Qxe4 {[%clk 0:00:26.5]} 38. b4 {[%clk 0:00:22.5]} 38... Qxb4 {[%clk
0:00:26.4]} 39. Bd4 {[%clk 0:00:19.8]} 39... Qxd4 {[%clk 0:00:24.5]} 0-1